bitfinex/quotes_SOLUSD_20241013
["timestamp","ask_amount","ask_price","bid_price","bid_amount"]
[1728861075717,21.34983391,147.6,147.54,1.35534169]
[1728861075923,6.775,147.6,147.53,28.048502]
[1728861076146,6.775,147.6,147.55,6.7772]
[1728861077437,1.34983391,147.59,147.53,23.7226]
[1728861077643,1.34983391,147.6,147.53,23.7226]
[1728861078232,6.7769,147.56,147.52,26.7786]
[1728861078432,6.7765,147.57,147.52,26.7786]
[1728861079726,6.7769,147.56,147.51,7.6245797]
[1728861080658,43.38443391,147.55,147.36,7.1104797]
[1728861080844,6.7806,147.48,147.36,7.1104797]
[1728861081151,6.7817,147.46,147.39,11.103702]
[1728861081854,6.7809,147.48,147.42,6.7832]
[1728861082158,6.7809,147.48,147.43,1.35627787]
[1728861083152,6.7809,147.48,147.42,6.7832]
[1728861083668,1.17773574,147.5,147.47,11.103702]
[1728861083842,8.12863391,147.52,147.45,16.9542]
[1728861084049,6.7792,147.51,147.45,16.9542]
[1728861084250,1.34983391,147.5,147.45,16.9542]
[1728861084450,6.7792,147.51,147.45,16.9542]
[1728861084663,1.34983391,147.5,147.45,16.9542]
[1728861084848,6.7801,147.49,147.43,29.6261]
[1728861085553,23.776884,147.53,147.43,22.8436]
[1728861085740,6.7796,147.51,147.44,6.7823]
[1728861085930,8.12943391,147.5,147.44,6.7823]
[1728861086338,6.7792,147.51,147.44,6.7823]
[1728861087252,6.7792,147.51,147.43,22.8436]
[1728861087253,6.7792,147.51,147.45,8.13774578]
[1728861087732,6.7792,147.51,147.45,6.7817]
[1728861087937,1.34983391,147.5,147.45,6.7817]
[1728861088370,8.12903391,147.51,147.46,1.35605201]
[1728861089362,6.7792,147.51,147.46,1.35605201]
[1728861090342,6.7792,147.51,147.45,6.7817]
[1728861091057,1.34983391,147.5,147.45,6.7817]
[1728861091257,8.12963391,147.5,147.45,6.7817]
[1728861093568,8.12963391,147.5,147.46,1.35607116]
[1728861094068,6.7792,147.51,147.46,8.13747116]
[1728861094667,6.7792,147.51,147.46,6.7814]
[1728861094866,6.7792,147.51,147.47,1.35601658]
[1728861096749,6.7792,147.51,147.46,6.7814]
[1728861096956,6.7792,147.51,147.47,1.356019]
[1728861097450,8.12863391,147.52,147.47,8.137019]
[1728861097658,6.7788,147.52,147.47,8.137019]
[1728861098971,1.34983391,147.54,147.47,1.356019]
[1728861099150,1.34983391,147.54,147.49,6.78]
[1728861099151,6.778,147.54,147.49,6.78]
[1728861099759,6.778,147.54,147.5,1.35570555]
[1728861100288,23.75923391,147.55,147.5,6.7795]
[1728861100447,1.34983391,147.54,147.5,6.7795]
[1728861100646,1.34983391,147.54,147.48,16.9507]
[1728861100852,6.7784,147.53,147.48,23.7309]
[1728861101858,6.7784,147.53,147.49,8.13571154]
[1728861102149,6.7784,147.53,147.49,6.78]
[1728861102564,6.7784,147.53,147.48,23.7312]
[1728861102945,1.34983391,147.54,147.48,23.7312]
[1728861103150,6.7788,147.52,147.48,16.9507]
[1728861109768,1.34983391,147.54,147.48,28.097149]
[1728861109960,8.12783391,147.54,147.49,8.13572983]
[1728861110160,8.12783391,147.54,147.49,6.7799]
[1728861110360,6.7784,147.53,147.48,23.7312]
[1728861115673,1.34983391,147.54,147.49,1.35580391]
[1728861115874,15.6317,147.55,147.51,6.7791]
[1728861116082,15.6317,147.55,147.52,1.35560773]
[1728861116585,6.777,147.56,147.52,1.35560773]
[1728861116973,8.12753391,147.55,147.5,28.094849]
[1728861117786,8.12753391,147.55,147.5,16.9484]
[1728861117986,8.12753391,147.55,147.5,23.7276]
[1728861118368,1.34983391,147.55,147.5,23.7276]
[1728861118570,6.7778,147.54,147.5,23.7276]
[1728861119871,6.7778,147.54,147.5,34.874049]
[1728861120497,6.7778,147.54,147.5,23.7276]
[1728861120666,1.34983391,147.53,147.47,28.098549]
[1728861120862,6.7783,147.53,147.48,6.7805]
[1728861123583,6.7783,147.53,147.49,1.35573251]
[1728861125983,6.7783,147.53,147.48,17.926949]
[1728861126181,6.7783,147.53,147.49,1.35572916]
[1728861126384,6.7783,147.53,147.49,11.59716508]
[1728861126582,6.7783,147.53,147.49,8.13572916]
[1728861127296,6.7783,147.53,147.49,11.59716046]
[1728861127889,6.7783,147.53,147.49,8.13572916]
[1728861128090,6.7783,147.53,147.49,11.59760834]
[1728861128984,6.7783,147.53,147.49,11.59766673]
[1728861129168,6.7783,147.53,147.49,8.13572916]
[1728861129797,6.7779,147.54,147.49,8.13572916]
[1728861130196,1.34983391,147.53,147.49,6.78]
[1728861130579,6.7779,147.54,147.49,6.78]
[1728861134281,6.7779,147.54,147.5,1.35571275]
[1728861135501,6.7787,147.52,147.47,16.9521]
[1728861135802,6.7787,147.52,147.48,10.24406226]
[1728861136002,18.29263391,147.56,147.49,3.46376226]
[1728861136187,6.7783,147.53,147.48,6.7803]
[1728861136604,6.7783,147.53,147.49,3.46403702]
[1728861136904,6.7778,147.55,147.5,8.13491556]
[1728861137101,6.7778,147.55,147.5,1.35571556]
[1728861137485,1.34983391,147.56,147.5,1.35571556]
[1728861137814,6.7769,147.56,147.52,6.7786]
[1728861137979,6.7769,147.56,147.53,1.35546722]
[1728861138398,6.7769,147.56,147.52,6.7786]
[1728861138609,6.7769,147.56,147.51,6.779]
[1728861138781,1.34983391,147.55,147.51,6.779]
[1728861138987,6.7769,147.56,147.51,6.779]
[1728861142890,6.7769,147.56,147.52,1.35552451]
[1728861143611,6.7769,147.56,147.51,6.779]
[1728861144184,6.7769,147.56,147.52,1.35552557]
[1728861145113,6.7765,147.57,147.52,8.13402557]
[1728861145783,8.12703391,147.56,147.51,23.7264]
[1728861152215,1.34983391,147.56,147.48,16.9511]
[1728861152398,6.7787,147.53,147.48,23.7316]
[1728861152713,6.7788,147.52,147.49,3.46669851]
[1728861152925,6.7788,147.52,147.5,3.46669851]
[1728861153090,6.7788,147.52,147.48,23.7316]
[1728861153286,6.7788,147.52,147.49,3.46680159]
[1728861153487,6.7788,147.52,147.5,3.46680159]
[1728861153719,6.7788,147.52,147.48,23.7316]
[1728861153928,6.7788,147.52,147.49,3.46675555]
[1728861154214,6.7788,147.52,147.5,3.46675555]
[1728861154409,6.7788,147.52,147.48,23.7316]
[1728861154593,1.34983391,147.51,147.49,3.46691797]
[1728861154794,1.34983391,147.51,147.42,22.5706]
[1728861154999,6.7807,147.48,147.43,6.7824]
[1728861156123,8.13093391,147.47,147.42,23.7415]
[1728861156307,6.7815,147.46,147.42,16.9582]
[1728861159101,6.7819,147.45,147.4,6.7842]
[1728861159412,6.7815,147.46,147.4,6.7842]
[1728861159800,6.7815,147.46,147.39,50.678549]
[1728861160013,6.7815,147.46,147.41,6.7836]
[1728861161318,8.13083391,147.48,147.42,8.13935771]
[1728861162328,6.7812,147.47,147.42,6.7829]
[1728861162644,1.34983391,147.46,147.42,6.7829]
[1728861163925,8.13103391,147.47,147.42,8.13933806]
[1728861164309,1.34983391,147.49,147.45,6.7818]
[1728861164736,1.34983391,147.49,147.45,8.1379898]
[1728861164911,8.12983391,147.5,147.45,8.1379898]
[1728861165220,6.7801,147.49,147.45,1.3561898]
[1728861165429,1.34983391,147.48,147.43,16.9563]
[1728861165726,20.0,147.5,147.43,16.9563]
[1728861165909,25.12671791,147.49,147.43,16.9563]
[1728861166226,6.7811,147.47,147.43,16.9563]
[1728861167229,1.34983391,147.46,147.4,6.7838]
[1728861167408,6.782,147.45,147.4,23.744]
[1728861168424,1.34983391,147.44,147.4,23.744]
[1728861168622,6.7824,147.44,147.4,16.9602]
[1728861169004,6.7824,147.44,147.4,23.7444]
[1728861170109,6.7824,147.44,147.41,1.356569]
[1728861170311,8.13183391,147.45,147.4,23.7444]
[1728861171825,1.34983391,147.45,147.41,6.7837]
[1728861172021,8.13133391,147.46,147.41,8.14020086]
[1728861174024,1.34983391,147.48,147.43,6.7825]
[1728861174236,8.13053391,147.48,147.44,1.35631392]
[1728861174934,8.13053391,147.48,147.43,6.7825]
[1728861175107,8.13053391,147.48,147.44,1.35634395]
[1728861175733,8.13053391,147.48,147.43,6.7825]
[1728861176117,8.13053391,147.48,147.44,1.35634436]
[1728861177207,8.13053391,147.48,147.43,6.7825]
[1728861178228,1.34983391,147.48,147.43,6.7825]
[1728861178540,6.7811,147.47,147.42,23.7407]
[1728861180240,1.34983391,147.46,147.42,16.9575]
[1728861180410,6.7815,147.46,147.42,16.9575]
[1728861180930,1.34983391,147.45,147.42,16.9575]
[1728861181336,8.13183391,147.45,147.41,6.7837]
[1728861181523,1.34983391,147.48,147.41,6.7837]
[1728861181715,6.7815,147.46,147.41,6.7837]
[1728861182108,1.34983391,147.45,147.41,6.7837]
[1728861183340,6.7815,147.46,147.41,6.7837]
[1728861184842,6.7815,147.46,147.42,1.35647676]
[1728861186049,1.34983391,147.45,147.41,6.7837]
[1728861187655,6.7815,147.46,147.42,1.3564807]
[1728861187939,6.7815,147.46,147.42,8.1396807]
[1728861188727,6.7815,147.46,147.42,6.7832]
[1728861190940,1.34983391,147.45,147.42,6.7832]
[1728861191141,6.7815,147.46,147.42,6.7832]
[1728861192423,1.34983391,147.48,147.43,1.35648245]
[1728861192628,15.0664,147.5,147.45,6.7818]
[1728861192629,1.34983391,147.49,147.45,6.7818]
[1728861192820,8.12993391,147.49,147.44,6.7823]
[1728861197157,8.12993391,147.49,147.44,8.13853574]
[1728861197360,1.34983391,147.49,147.45,6.7818]
[1728861197529,6.7797,147.5,147.46,1.35615786]
[1728861197731,9.3086611,147.52,147.47,6.7809]
[1728861197934,8.12863391,147.52,147.48,1.35596213]
[1728861198257,8.12863391,147.52,147.47,6.7809]
[1728861199364,1.18017305,147.56,147.51,6.7791]
[1728861199365,6.7774,147.55,147.51,6.7791]
[1728861199523,6.7774,147.55,147.5,6.7796]
[1728861199722,6.7783,147.53,147.48,6.7804]
[1728861199935,6.7783,147.53,147.49,16.9497]
[1728861200228,1.34983391,147.54,147.5,1.35576348]
[1728861200425,6.7778,147.54,147.5,1.35576348]
[1728861200630,30.554284,147.55,147.5,6.7795]
[1728861200842,1.34983391,147.54,147.5,6.7795]
[1728861202056,8.12763391,147.54,147.5,6.7795]
[1728861205857,8.12763391,147.54,147.49,23.7297]
[1728861206158,8.12763391,147.54,147.5,6.7796]
[1728861207856,1.34983391,147.54,147.5,17.926049]
[1728861208032,8.12723391,147.55,147.51,8.13486021]
[1728861208355,8.12723391,147.55,147.51,8.13473932]
[1728861209028,6.7774,147.55,147.51,8.13473932]
[1728861209231,6.7774,147.55,147.51,6.7791]
[1728861209452,6.7774,147.55,147.51,8.13474337]
[1728861209847,6.7774,147.55,147.51,6.7791]
[1728861210448,6.7774,147.55,147.51,8.13474152]
[1728861210862,1.34983391,147.54,147.51,6.7791]
[1728861215257,8.12723391,147.55,147.51,6.7791]
[1728861216169,1.34983391,147.54,147.51,6.7791]
[1728861216359,1.34983391,147.56,147.51,1.35567678]
[1728861216563,1.34983391,147.57,147.52,17.924749]
[1728861216756,8.12643391,147.57,147.52,17.924749]
[1728861218043,6.7783,147.53,147.48,6.7801]
[1728861218248,1.34983391,147.52,147.49,6.7799]
[1728861218457,1.34983391,147.53,147.49,6.7799]
[1728861219371,8.12813391,147.53,147.49,6.7799]
[1728861226844,23.776884,147.52,147.48,6.7805]
[1728861227179,1.34983391,147.52,147.48,6.7805]
[1728861227358,1.34983391,147.52,147.48,8.13646311]
[1728861228079,1.34983391,147.53,147.49,6.78]
[1728861229564,8.12823391,147.53,147.49,6.78]
[1728861231258,23.776884,147.52,147.48,6.7805]
[1728861233570,23.776884,147.52,147.48,8.13638502]
[1728861235487,23.776884,147.52,147.48,6.7805]
[1728861237670,1.34983391,147.51,147.48,6.7805]
[1728861237871,23.776884,147.52,147.48,6.7805]
[1728861240792,1.34983391,147.51,147.48,6.7805]
[1728861241589,23.776884,147.52,147.48,6.7805]
[1728861242269,23.776884,147.52,147.48,10.24005009]
[1728861243290,23.776884,147.52,147.48,6.7805]
[1728861244399,23.776884,147.52,147.49,3.46301348]
[1728861244601,23.776884,147.52,147.48,6.7805]
[1728861244776,23.776884,147.52,147.49,3.46301282]
[1728861244979,23.776884,147.52,147.48,6.7805]
[1728861245195,23.776884,147.52,147.49,3.46301348]
[1728861245378,23.776884,147.52,147.48,6.7805]
[1728861245696,6.7792,147.51,147.49,3.46438935]
[1728861245995,6.7792,147.51,147.47,16.9521]
[1728861246169,6.7792,147.51,147.48,3.46439915]
[1728861246373,6.7792,147.51,147.43,15.1704]
[1728861246374,23.776884,147.5,147.44,16.9556]
[1728861246678,6.7815,147.46,147.45,3.46468913]
[1728861246993,6.781,147.47,147.45,3.46468913]
[1728861247179,30.557884,147.47,147.46,3.46468913]
[1728861247384,6.781,147.47,147.44,3.46468913]
[1728861247612,6.781,147.47,147.45,3.46468913]
[1728861247784,6.781,147.47,147.43,6.7828]
[1728861248097,6.781,147.47,147.44,3.46414884]
[1728861248295,6.781,147.47,147.45,3.46414884]
[1728861248502,6.781,147.47,147.44,3.46299816]
[1728861248793,1.34983391,147.46,147.45,3.46299816]
[1728861248997,6.781,147.47,147.44,3.46299816]
[1728861249301,6.781,147.47,147.45,3.46184062]
[1728861249597,6.781,147.47,147.44,3.46184062]
[1728861249801,6.781,147.47,147.45,3.46184062]
[1728861249977,6.781,147.47,147.44,3.46184062]
[1728861250176,30.557484,147.48,147.43,6.7828]
[1728861250379,30.557484,147.48,147.44,11.59950825]
[1728861250704,30.557484,147.48,147.44,8.13857863]
[1728861251198,23.776884,147.48,147.44,11.59886928]
[1728861252574,23.776884,147.48,147.44,10.24259065]
[1728861252901,1.34983391,147.47,147.44,10.24259065]
[1728861255995,30.557484,147.48,147.44,6.7823]
[1728861256191,23.776884,147.49,147.45,6.7818]
[1728861258792,1.34983391,147.48,147.45,6.7818]
[1728861258990,30.556984,147.49,147.45,6.7818]
[1728861259487,1.34983391,147.48,147.44,10.23993528]
[1728861260084,8.13043391,147.48,147.44,10.23993528]
[1728861260689,6.7815,147.46,147.44,3.45763528]
[1728861260878,6.7815,147.46,147.39,15.5789]
[1728861260879,1.34983391,147.45,147.4,3.45763528]
[1728861261203,6.7818,147.46,147.41,10.24133528]
[1728861261402,25.12671791,147.45,147.41,6.7837]
[1728861261585,25.12671791,147.45,147.41,10.24133528]
[1728861261776,25.12671791,147.45,147.41,6.7837]
[1728861261979,25.12671791,147.45,147.41,10.24133528]
[1728861262201,25.12671791,147.45,147.41,6.7837]
[1728861262384,25.12671791,147.45,147.41,10.24133528]
[1728861263198,25.12671791,147.45,147.41,11.59788349]
[1728861264680,25.12671791,147.45,147.41,10.24133528]
[1728861265708,25.12671791,147.45,147.41,6.7837]
[1728861265886,25.12671791,147.45,147.41,10.24059785]
[1728861267985,6.7818,147.46,147.41,10.24059785]
[1728861268183,23.776884,147.46,147.42,8.1395322]
[1728861268910,23.776884,147.46,147.42,6.7831]
[1728861273122,23.776884,147.46,147.42,10.23945925]
[1728861278722,25.12671791,147.46,147.42,10.23945925]
[1728861280308,6.7802,147.49,147.44,6.782]
[1728861280513,6.7802,147.49,147.45,8.13802279]
[1728861281723,23.776884,147.48,147.45,8.13802279]
[1728861282432,23.776884,147.48,147.45,6.7818]
[1728861284743,1.34983391,147.5,147.47,6.781]
[1728861285031,23.77513391,147.51,147.46,8.13763776]
[1728861285999,23.776884,147.5,147.46,8.13763776]
[1728861286924,23.776884,147.5,147.46,6.7814]
[1728861287118,23.776884,147.5,147.46,8.13747004]
[1728861288016,23.776884,147.5,147.46,6.7814]
[1728861288832,30.556584,147.5,147.46,6.7814]
[1728861289010,31.90641791,147.5,147.46,6.7814]
[1728861303142,6.7788,147.52,147.47,17.927249]
[1728861303337,8.12813391,147.53,147.48,1.35592893]
[1728861303539,8.12813391,147.53,147.48,6.7805]
[1728861304319,8.12813391,147.53,147.47,11.146449]
[1728861304320,8.12763391,147.54,147.5,17.926049]
[1728861304526,5.09683046,147.59,147.44,15.1595]
[1728861304527,16.0615,147.6,147.52,17.925149]
[1728861304846,6.776,147.58,147.53,8.13368583]
[1728861305021,1.34983391,147.57,147.53,8.13368583]
[1728861305224,8.12633391,147.57,147.53,6.7781]
[1728861305422,8.12633391,147.57,147.52,17.925149]
[1728861306222,23.776884,147.56,147.52,17.925149]
[1728861312155,8.12723391,147.55,147.5,23.7275]
[1728861312330,8.12723391,147.55,147.5,34.873949]
[1728861314957,1.34983391,147.55,147.51,6.779]
[1728861315128,23.776884,147.56,147.52,19.28053812]
[1728861315537,23.776884,147.56,147.52,17.924949]
[1728861316042,6.7765,147.57,147.52,17.924949]
[1728861316243,1.34983391,147.56,147.52,17.924949]
[1728861316466,23.776884,147.56,147.52,17.924949]
[1728861316770,6.7765,147.57,147.53,8.13359969]
[1728861316930,30.552984,147.58,147.53,8.13359969]
[1728861317137,1.34983391,147.57,147.53,8.13359969]
[1728861317335,31.90281791,147.58,147.53,8.13359969]
[1728861318461,1.34983391,147.57,147.53,8.13359969]
[1728861318760,23.776884,147.58,147.54,11.146449]
[1728861319059,23.776884,147.58,147.55,1.3553172]
[1728861320657,8.12533391,147.59,147.55,1.3553172]
[1728861320956,24.18643391,147.6,147.55,8.1323172]
[1728861321134,8.12493391,147.6,147.56,11.146449]
[1728861321332,6.7751,147.6,147.56,11.146449]
[1728861321533,1.34983391,147.63,147.57,1.3551644]
[1728861321757,6.7742,147.62,147.57,8.1311644]
[1728861322061,8.12453391,147.61,147.57,6.776]
[1728861322362,6.7747,147.61,147.57,6.776]
[1728861323742,8.12383391,147.63,147.57,6.776]
[1728861323936,23.776884,147.62,147.57,6.776]
[1728861324150,30.551184,147.62,147.57,6.776]
[1728861326055,30.551184,147.62,147.58,8.13088908]
[1728861326274,30.551184,147.62,147.58,6.7759]
[1728861326978,30.551184,147.62,147.56,28.087849]
[1728861327156,30.551184,147.62,147.57,6.7763]
[1728861327481,1.34983391,147.61,147.57,6.7763]
[1728861328973,23.776884,147.6,147.49,26.536249]
[1728861329150,23.776884,147.58,147.49,26.536249]
[1728861329353,21.34983391,147.59,147.49,26.536249]
[1728861329354,6.7771,147.56,147.51,6.7791]
[1728861331467,8.12723391,147.55,147.5,23.7282]
[1728861335376,6.7774,147.55,147.5,34.874649]
[1728861335981,6.7774,147.55,147.51,6.779]
[1728861336385,6.7769,147.56,147.51,6.779]
[1728861337096,1.34983391,147.55,147.51,6.779]
[1728861340471,6.7769,147.56,147.51,6.779]
[1728861342285,1.34983391,147.55,147.51,6.779]
[1728861355275,1.34983391,147.55,147.5,28.095049]
[1728861355276,6.7778,147.54,147.5,23.7281]
[1728861355480,30.554684,147.54,147.5,16.9486]
[1728861356208,6.7774,147.55,147.51,1.35574764]
[1728861356898,6.7774,147.55,147.5,16.9486]
[1728861357483,6.7774,147.55,147.51,6.7791]
[1728861357999,24.74073391,147.56,147.51,6.7791]
[1728861360311,30.554384,147.55,147.5,23.7281]
[1728861360478,1.34983391,147.54,147.5,23.7281]
[1728861361618,30.554384,147.55,147.5,23.7281]
[1728861361899,16.6139,147.56,147.53,6.7782]
[1728861362106,1.34983391,147.57,147.53,6.7782]
[1728861362277,1.34983391,147.57,147.53,8.13366365]
[1728861362481,8.12543391,147.59,147.53,1.35546365]
[1728861362686,8.12543391,147.59,147.54,11.146449]
[1728861362887,8.12543391,147.59,147.55,1.35527609]
[1728861363398,6.7756,147.59,147.55,8.13247609]
[1728861364181,6.7756,147.59,147.55,6.7772]
[1728861369506,1.34983391,147.58,147.55,6.7772]
[1728861370612,8.12543391,147.59,147.55,6.7772]
[1728861371609,1.34983391,147.6,147.56,8.13207659]
[1728861374007,1.34983391,147.6,147.56,10.23406808]
[1728861374314,1.34983391,147.6,147.56,6.7768]
[1728861374500,1.34983391,147.6,147.56,10.23468339]
[1728861375413,21.63629114,147.64,147.57,8.13145698]
[1728861375414,30.550984,147.62,147.57,8.13145698]
[1728861375913,15.1633,147.64,147.59,11.146449]
[1728861376225,8.12253391,147.65,147.61,17.920949]
[1728861376519,8.12253391,147.65,147.61,11.146449]
[1728861376887,8.12253391,147.65,147.6,6.775]
[1728861377112,1.34983391,147.64,147.6,6.775]
[1728861378495,23.776884,147.63,147.58,16.939]
[1728861378694,1.34983391,147.62,147.58,16.939]
[1728861378915,1.34983391,147.62,147.57,6.7764]
[1728861379218,6.7746,147.61,147.56,10.22773907]
[1728861379895,1.34983391,147.62,147.57,6.7763]
[1728861380104,8.12403391,147.62,147.57,6.7763]
[1728861380516,23.776884,147.61,147.55,16.943]
[1728861380823,8.12483391,147.6,147.55,16.943]
[1728861381612,8.12433391,147.62,147.57,6.7763]
[1728861383805,23.776884,147.61,147.56,6.7768]
[1728861384008,8.12493391,147.6,147.55,23.7202]
[1728861384213,6.7757,147.59,147.55,16.943]
[1728861385400,8.12493391,147.6,147.55,23.7203]
[1728861387107,8.12493391,147.6,147.56,1.3552165]
[1728861387315,8.12493391,147.6,147.56,6.7768]
[1728861389113,1.34983391,147.62,147.58,6.7756]
[1728861389311,8.12403391,147.62,147.58,6.7756]
[1728861391027,23.776884,147.61,147.58,6.7756]
[1728861391724,23.776884,147.61,147.57,28.086949]
[1728861391929,23.776884,147.61,147.57,34.863249]
[1728861392421,23.776884,147.61,147.57,23.7168]
[1728861392802,25.12671791,147.61,147.57,23.7168]
[1728861393507,31.90131791,147.61,147.57,23.7168]
[1728861394928,23.776884,147.61,147.57,23.7168]
[1728861396609,30.551484,147.61,147.57,23.7168]
[1728861397198,23.776884,147.59,147.57,16.9405]
[1728861398328,23.776884,147.6,147.57,16.9405]
[1728861399424,25.12671791,147.6,147.57,16.9405]
[1728861400329,23.776884,147.58,147.51,15.8877]
[1728861400535,23.776884,147.58,147.52,3.45226918]
[1728861400536,23.776884,147.57,147.52,3.45226918]
[1728861400733,23.776884,147.55,147.51,10.23126918]
[1728861400936,23.776884,147.55,147.51,6.779]
[1728861401134,1.34983391,147.54,147.51,3.45226918]
[1728861401639,23.776884,147.53,147.51,3.45226918]
[1728861401931,23.776884,147.52,147.49,6.78]
[1728861402132,23.776884,147.52,147.49,10.23226918]
[1728861402333,23.776884,147.52,147.49,6.78]
[1728861402500,23.776884,147.52,147.49,10.23226918]
[1728861402705,23.776884,147.52,147.49,6.78]
[1728861402906,23.776884,147.53,147.5,8.13541468]
[1728861403107,23.776884,147.54,147.5,8.13541468]
[1728861403409,23.776884,147.54,147.5,10.23186918]
[1728861404025,23.776884,147.55,147.5,10.23380348]
[1728861404325,25.12671791,147.55,147.5,10.23380348]
[1728861404527,31.90421791,147.55,147.5,10.23380348]
[1728861406940,31.90421791,147.55,147.5,3.45460348]
[1728861406941,25.12671791,147.55,147.5,3.45460348]
[1728861407120,23.776884,147.53,147.5,3.45460348]
[1728861407320,1.34983391,147.52,147.5,3.45460348]
[1728861407523,1.34983391,147.54,147.5,3.45460348]
[1728861407841,23.776884,147.53,147.5,3.45460348]
[1728861408231,30.555184,147.53,147.5,3.45460348]
[1728861409139,1.34983391,147.52,147.5,3.45460348]
[1728861409826,30.555184,147.53,147.5,3.45460348]
[1728861410025,1.34983391,147.52,147.5,3.45460348]
[1728861410808,30.555184,147.53,147.5,3.45460348]
[1728861411313,30.555184,147.53,147.49,16.9495]
[1728861412709,30.555184,147.53,147.49,23.7295]
[1728861412912,23.776884,147.53,147.49,23.7295]
[1728861415118,23.776884,147.53,147.49,25.08532195]
[1728861415535,23.776884,147.53,147.49,23.7295]
[1728861416339,1.34983391,147.52,147.49,23.7295]
[1728861416838,30.555084,147.53,147.49,23.7295]
[1728861417750,23.776884,147.55,147.51,6.779]
[1728861417911,25.12671791,147.55,147.51,6.779]
[1728861420046,23.776884,147.53,147.51,6.779]
[1728861420251,23.776884,147.53,147.5,6.7795]
[1728861420426,23.776884,147.53,147.49,16.9495]
[1728861420427,1.34983391,147.52,147.49,16.9495]
[1728861420932,23.776884,147.53,147.5,1.35581634]
[1728861421239,23.776884,147.53,147.49,16.9495]
[1728861421240,23.776884,147.53,147.51,6.7789]
[1728861421443,23.776884,147.54,147.51,6.7789]
[1728861421630,23.776884,147.54,147.49,16.9495]
[1728861421960,23.776884,147.54,147.5,6.7795]
[1728861422446,25.12671791,147.54,147.5,6.7795]
[1728861424443,25.12671791,147.54,147.45,6.4976]
[1728861424444,6.7791,147.52,147.47,6.7806]
[1728861424751,23.776884,147.5,147.48,6.7804]
[1728861425052,23.776884,147.51,147.48,6.7804]
[1728861427866,23.776884,147.51,147.47,10.233809]
[1728861428944,23.776884,147.51,147.47,6.7809]
[1728861429252,23.776884,147.51,147.47,10.23351338]
[1728861429755,1.34983391,147.5,147.47,3.45261338]
[1728861430047,30.556984,147.49,147.44,6.7824]
[1728861430259,1.34983391,147.48,147.44,10.23465169]
[1728861431126,23.776884,147.47,147.44,10.23465169]
[1728861431748,23.776884,147.48,147.44,10.23465169]
[1728861431932,25.12671791,147.48,147.44,6.7824]
[1728861434350,23.776884,147.48,147.44,6.7824]
[1728861434658,23.776884,147.48,147.46,6.7814]
[1728861435142,8.12913391,147.51,147.46,11.146449]
[1728861435342,23.776884,147.5,147.47,6.7809]
[1728861437530,23.776884,147.5,147.46,11.146449]
[1728861437738,1.34983391,147.49,147.46,17.927849]
[1728861438052,1.34983391,147.49,147.46,6.7814]
[1728861440340,1.34983391,147.49,147.45,3.45113986]
[1728861440341,30.557584,147.48,147.45,3.45113986]
[1728861440542,23.776884,147.46,147.45,3.45113986]
[1728861441164,23.776884,147.46,147.44,16.9553]
[1728861441459,23.776884,147.47,147.43,6.7828]
[1728861441750,23.776884,147.45,147.42,3.4529202]
[1728861441958,1.34983391,147.44,147.42,3.4529202]
[1728861442263,23.776884,147.43,147.41,16.9589]
[1728861442959,1.34983391,147.44,147.41,16.9589]
[1728861442960,25.12671791,147.44,147.41,16.9589]
[1728861444028,25.12671791,147.44,147.41,23.7426]
[1728861444756,25.12671791,147.44,147.41,16.9589]
[1728861447053,31.90911791,147.44,147.4,6.7841]
[1728861449142,25.12671791,147.44,147.4,6.7841]
[1728861451278,25.12671791,147.44,147.4,10.23407396]
[1728861451435,25.12671791,147.44,147.4,6.7841]
[1728861457952,25.12671791,147.44,147.39,3.44841371]
[1728861457953,25.12671791,147.44,147.41,6.7836]
[1728861460576,23.776884,147.44,147.43,6.7824]
[1728861461072,1.34983391,147.47,147.44,6.7824]
[1728861461566,1.34983391,147.47,147.43,6.7827]
[1728861462773,23.776884,147.46,147.43,6.7827]
[1728861462972,23.776884,147.44,147.42,16.9577]
[1728861463150,23.776884,147.43,147.42,16.9577]
[1728861464764,23.776884,147.43,147.41,6.7834]